bitfinex-derivatives/quotes_ETHF0:USTF0_20250524
["timestamp","ask_amount","ask_price","bid_price","bid_amount"]
[1748123305630,0.95005117,2534.7,2534.6,18.53665424]
[1748123307431,0.00591623,2534.7,2534.6,18.53665424]
[1748123307629,1.58701623,2534.7,2534.6,18.53665424]
[1748123307828,0.00591623,2534.7,2534.6,18.53665424]
[1748123308325,1.58701623,2534.7,2534.6,0.78365424]
[1748123309231,2.37582623,2534.7,2534.6,0.78365424]
[1748123309430,3.31989824,2534.7,2534.6,0.78365424]
[1748123309730,26.15908824,2534.7,2534.6,0.78365424]
[1748123310534,26.15908824,2534.7,2534.6,2.49205424]
[1748123311036,8.40508824,2534.7,2534.6,2.49205424]
[1748123312838,6.82398824,2534.7,2534.6,2.49205424]
[1748123313137,5.87991623,2534.7,2534.6,2.49205424]
[1748123314238,5.87991623,2534.7,2534.5,17.736]
[1748123314430,2.37644,2534.6,2534.5,17.736]
[1748123315632,3.32113081,2534.6,2534.5,17.736]
[1748123316340,3.32113081,2534.6,2534.5,18.52487]
[1748123317035,2.53229081,2534.6,2534.5,18.52487]
[1748123317239,20.28529081,2534.6,2534.5,18.52487]
[1748123318037,0.94469081,2534.6,2534.5,18.52487]
[1748123318932,0.94469081,2534.6,2534.5,20.25067]
[1748123320037,5.87991623,2534.7,2534.6,0.78884]
[1748123321340,6.82695257,2534.7,2534.6,0.78884]
[1748123322540,0.95295257,2534.7,2534.6,0.78884]
[1748123324136,5.52566782,2535.1,2535.0,0.78871]
[1748123324342,2.31786782,2535.2,2535.1,0.78868]
[1748123324540,2.31786782,2535.2,2535.1,2.43828]
[1748123326144,2.32378405,2535.4,2535.3,0.78862]
[1748123326737,2.32378405,2535.4,2535.3,2.53702]
[1748123327642,0.00591623,2535.4,2535.3,2.53702]
[1748123327843,4.07586782,2535.8,2535.7,0.7885]
[1748123328143,22.61433782,2535.8,2535.7,17.733]
[1748123328742,20.29647,2535.8,2535.7,17.733]
[1748123328941,1.758,2535.8,2535.7,18.5215]
[1748123329141,22.7158,2535.8,2535.7,17.733]
[1748123329349,30.3296,2535.8,2535.7,18.5215]
[1748123330453,31.11807,2535.8,2535.7,18.5215]
[1748123333859,30.3286,2535.8,2535.7,18.5215]
[1748123334165,6.7056,2535.8,2535.7,18.5215]
[1748123334362,3.2078,2535.8,2535.7,18.5215]
[1748123334553,0.00391667,2536.0,2535.9,0.78843]
[1748123335658,0.00391667,2536.0,2535.3,5.17933]
[1748123335865,3.99627,2535.8,2535.4,19.3587]
[1748123336061,3.99627,2535.8,2535.6,0.7885]
[1748123336261,3.2781,2535.7,2535.6,0.7885]
[1748123337162,3.2781,2535.7,2535.5,0.78854]
[1748123337358,4.21842538,2535.7,2535.5,0.78854]
[1748123338063,5.00692538,2535.7,2535.5,0.78854]
[1748123338262,4.21842538,2535.7,2535.4,19.3587]
[1748123338658,3.2781,2535.7,2535.4,19.3587]
[1748123338866,3.2781,2535.7,2535.4,20.14727]
[1748123339256,3.2781,2535.7,2535.4,19.3587]
[1748123339460,3.2781,2535.7,2535.5,0.78855]
[1748123339662,3.2781,2535.7,2535.6,0.78853]
[1748123341471,4.21873297,2535.7,2535.6,0.78853]
[1748123342568,10.09273297,2535.7,2535.4,17.719]
[1748123342770,0.78856,2535.5,2535.4,17.719]
[1748123342969,18.53556,2535.5,2535.4,17.719]
[1748123343671,19.47619297,2535.5,2535.4,17.719]
[1748123344074,19.47619297,2535.5,2535.4,18.50759]
[1748123344273,18.68763297,2535.5,2535.4,18.50759]
[1748123345177,19.47619297,2535.5,2535.4,18.50759]
[1748123346075,19.47619297,2535.5,2535.4,17.719]
[1748123346267,19.47619297,2535.5,2535.4,18.50759]
[1748123347873,25.35019297,2535.5,2535.4,18.50759]
[1748123348578,27.66806079,2535.5,2535.4,18.50759]
[1748123348871,27.66806079,2535.5,2535.4,17.719]
[1748123349665,9.92106079,2535.5,2535.4,17.719]
[1748123349869,9.92106079,2535.5,2535.4,18.50759]
[1748123350072,27.66906079,2535.5,2535.4,18.50759]
[1748123350273,27.66906079,2535.5,2535.4,17.719]
[1748123350876,25.35119297,2535.5,2535.4,17.719]
[1748123352080,27.66906079,2535.5,2535.4,17.719]
[1748123352275,9.92106079,2535.5,2535.4,17.719]
[1748123352474,26.88050079,2535.5,2535.4,18.50759]
[1748123352872,21.79506079,2535.5,2535.4,18.50759]
[1748123353177,1.72919297,2535.5,2535.4,18.50759]
[1748123353379,19.47719297,2535.5,2535.4,18.50759]
[1748123355278,19.47719297,2535.5,2535.4,17.719]
[1748123356181,19.47719297,2535.5,2535.4,19.4101]
[1748123356683,0.94063297,2535.5,2535.4,20.19869]
[1748123356885,18.68863297,2535.5,2535.4,20.19869]
[1748123357082,18.68863297,2535.5,2535.4,19.4101]
[1748123357382,18.68863297,2535.5,2535.4,20.19869]
[1748123358685,0.94063297,2535.5,2535.4,20.19869]
[1748123364685,2.97e-06,2535.5,2535.4,25.19869]
[1748123364884,2.97e-06,2535.5,2535.4,28.40649]
[1748123366281,0.00391667,2536.0,2535.5,1.97133]
[1748123366485,0.00391667,2536.0,2535.8,3.2078]
[1748123366689,0.00391667,2536.0,2535.9,19.3294]
[1748123367190,0.00391667,2536.0,2535.9,20.11783]
[1748123380903,5.874,2536.3,2536.2,0.78834]
[1748123382008,5.874,2536.3,2536.2,2.40404]
[1748123383109,6.81171851,2536.3,2536.2,2.40404]
[1748123383309,0.93771851,2536.3,2536.2,2.40404]
[1748123389622,0.93771851,2536.3,2536.2,0.78834]
[1748123390623,0.93771851,2536.3,2536.2,18.46834]
[1748123419343,2.31786782,2536.7,2536.6,0.78822]
[1748123419536,2.31786782,2536.7,2536.6,18.41422]
[1748123421139,2.31786782,2536.7,2536.6,21.62202]
[1748123421542,4.09276782,2537.0,2536.9,0.78812]
[1748123422343,2.31786782,2537.0,2536.9,0.78812]
[1748123422545,1.7614,2537.1,2537.0,0.78809]
[1748123422744,1.7614,2537.1,2537.0,18.41309]
[1748123426147,1.7026,2537.2,2537.1,0.78806]
[1748123426445,1.7026,2537.2,2537.1,2.60416]
[1748123427354,1.8064,2537.4,2537.3,0.788]
[1748123427548,3.4984,2537.4,2537.3,0.788]
[1748123428152,3.4984,2537.4,2537.3,18.342]
[1748123429248,3.2078,2537.5,2537.4,0.78797]
[1748123430655,1.7689,2538.0,2537.9,0.78781]
[1748123430851,5.2689,2538.0,2537.9,18.33981]
[1748123431954,10.2689,2538.0,2537.9,18.33981]
[1748123432258,10.2689,2538.0,2537.9,17.552]
[1748123432553,10.2689,2538.0,2537.9,18.33981]
[1748123432755,10.2689,2538.0,2537.9,18.33881]
[1748123433461,10.2689,2538.0,2537.9,17.551]
[1748123433462,14.40625465,2538.0,2537.9,17.551]
[1748123433651,15.19403465,2538.0,2537.9,17.551]
[1748123433846,9.40625465,2538.0,2537.9,18.33881]
[1748123434558,9.40625465,2538.0,2537.9,0.78781]
[1748123434858,14.40625465,2538.0,2537.8,0.78783]
[1748123435156,0.78791,2537.6,2537.5,14.7636]
[1748123435360,3.99571,2537.6,2537.5,14.7636]
[1748123435550,3.2078,2537.6,2537.5,15.55154]
[1748123436147,5.0192,2537.6,2537.5,15.55154]
[1748123436960,5.94875465,2537.6,2537.5,15.55154]
[1748123438966,9.61215465,2537.6,2537.5,15.55154]
[1748123441261,10.40006465,2537.6,2537.5,15.55154]
[1748123445163,16.27406465,2537.6,2537.5,15.55154]
[1748123446263,13.06626465,2537.6,2537.5,15.55154]
[1748123448166,13.07211105,2537.6,2537.5,15.55154]
[1748123450669,11.22191105,2537.6,2537.5,15.55154]
[1748123457375,10.43400105,2537.6,2537.5,15.55154]
[1748123459087,8.62080105,2537.6,2537.5,15.55154]
[1748123459283,8.62080105,2537.6,2537.5,17.39214]
[1748123461587,6.80940105,2537.6,2537.5,17.39214]
[1748123463585,9.12726887,2537.6,2537.5,17.39214]
[1748123465094,6.80940105,2537.6,2537.5,17.39214]
[1748123476901,6.80940105,2537.6,2537.5,19.10884]
[1748123483105,9.15411736,2537.6,2537.5,19.10884]
[1748123484204,9.15411736,2537.6,2537.5,15.55154]
[1748123484399,11.70702736,2537.6,2537.5,14.7636]
[1748123484600,13.55282736,2537.6,2537.5,14.7636]
[1748123484998,13.55282736,2537.6,2537.5,15.55154]
[1748123485198,11.20811105,2537.6,2537.5,15.55154]
[1748123486303,11.20811105,2537.6,2537.5,0.78794]
[1748123486704,0.78794,2537.5,2537.4,17.475]
[1748123486904,22.19884,2537.5,2537.4,10.63855334]
[1748123487102,27.19884,2537.5,2537.4,10.63855334]
[1748123487300,0.78797,2537.4,2537.3,0.00591623]
[1748123487503,11.56707,2537.4,2537.3,0.00591623]
[1748123487704,16.56707,2537.4,2537.3,0.00591623]
[1748123487900,11.56707,2537.4,2537.3,0.79391623]
[1748123488104,10.7791,2537.4,2537.3,0.79391623]
[1748123488507,25.3043,2537.4,2537.3,0.79391623]
[1748123488706,8.50085465,2537.4,2537.3,0.79391623]
[1748123488908,26.23385465,2537.4,2537.3,0.79391623]
[1748123489410,8.50085465,2537.4,2537.3,0.79391623]
[1748123489615,6.80355465,2537.4,2537.3,2.64801623]
[1748123489910,0.92955465,2537.4,2537.3,2.64801623]
[1748123490111,0.92955465,2537.4,2537.3,7.64801623]
[1748123490514,0.92955465,2537.4,2537.3,2.64801623]
[1748123495922,4.65e-06,2537.4,2537.3,7.64801623]
[1748123496121,4.65e-06,2537.4,2537.3,10.85581623]
[1748123497425,4.65e-06,2537.4,2537.3,11.40585296]
[1748123497818,4.65e-06,2537.4,2537.3,11.40585175]
[1748123498017,0.0058464,2537.6,2537.5,0.78794]
[1748123498317,0.0058464,2537.6,2537.5,18.73097552]
[1748123499125,1.7761464,2537.6,2537.5,18.73097552]
[1748123499323,1.7761464,2537.6,2537.5,20.42447552]
[1748123499719,0.0058464,2537.6,2537.5,20.42452897]
[1748123500120,0.0058464,2537.6,2537.5,20.42452247]
[1748123501722,0.0058464,2537.6,2537.5,20.42439487]
[1748123503418,0.0058464,2537.6,2537.5,20.42427692]
[1748123507222,0.0058464,2537.6,2537.5,20.42417825]
[1748123509022,0.0058464,2537.6,2537.5,19.87444]
[1748123509217,0.0058464,2537.6,2537.5,20.42413241]
[1748123509419,0.93702177,2537.6,2537.5,20.42413241]
[1748123510921,2.34379103,2538.1,2538.0,0.78778]
[1748123511121,2.34379103,2538.1,2538.0,18.72742155]
[1748123511723,9.94019103,2538.2,2538.1,0.78775]
[1748123511924,8.21779103,2538.2,2538.1,1.33739155]
[1748123513326,8.21779103,2538.2,2538.1,3.13930883]
[1748123514226,5.874,2538.2,2538.1,3.13930883]
[1748123515527,9.0818,2538.5,2538.4,0.78766]
[1748123515730,9.0818,2538.5,2538.4,18.72721883]
[1748123516521,5.874,2538.5,2538.4,18.72721883]
[1748123516728,5.874,2538.5,2538.4,18.72672035]
[1748123516929,5.874,2538.5,2538.4,20.43632035]
[1748123518633,5.874,2538.5,2538.4,20.43630994]
[1748123518932,5.874,2538.6,2538.5,0.78763]
[1748123519133,5.874,2538.6,2538.5,1.33667994]
[1748123520536,5.874,2538.6,2538.5,18.63774881]
[1748123521338,5.874,2538.6,2538.5,1.33674881]
[1748123521541,5.874,2538.6,2538.5,18.63774881]
[1748123522138,5.874,2538.6,2538.5,1.33674881]
[1748123522736,5.874,2538.6,2538.5,18.63774881]
[1748123523140,6.80024273,2538.6,2538.5,18.63774881]
[1748123524536,8.56494273,2538.6,2538.5,18.63774881]
[1748123528145,8.56494273,2538.6,2538.5,18.63763252]
[1748123530045,8.56494273,2538.6,2538.5,18.63759498]
[1748123532540,8.56494273,2538.6,2538.5,1.33659498]
[1748123532748,8.56494273,2538.6,2538.5,18.63459498]
[1748123533850,8.56494273,2538.6,2538.5,18.63461489]
[1748123537455,6.80024273,2538.6,2538.5,18.63461489]
[1748123537758,0.92624273,2538.6,2538.5,23.63601489]
[1748123538461,5.874,2538.9,2538.8,0.78753]
[1748123538756,2.34379103,2539.1,2538.9,0.7875]
[1748123538757,5.874,2539.0,2538.9,0.7875]
[1748123538957,5.874,2539.0,2538.9,22.07918489]
[1748123539157,5.874,2539.0,2538.9,18.63448489]
[1748123539352,9.4217,2539.0,2538.9,18.63448489]
[1748123539959,9.4217,2539.0,2538.9,17.84698489]
[1748123540159,9.4217,2539.0,2538.9,18.63448489]
[1748123540361,9.4217,2539.0,2538.9,17.84698489]
[1748123540960,9.4217,2539.0,2538.9,18.63448489]
[1748123541362,9.4217,2539.0,2538.9,18.63497706]
[1748123541857,7.7061,2539.0,2538.9,18.63497706]
[1748123543062,7.7061,2539.0,2538.9,0.7875]
[1748123543258,8.49357,2539.0,2538.9,18.63409877]
[1748123543455,7.7061,2539.0,2538.9,1.33709877]
[1748123543765,7.7061,2539.0,2538.9,18.63409877]
[1748123544961,7.7061,2539.0,2538.9,18.63429752]
[1748123546964,7.7061,2539.0,2538.9,18.63429213]
[1748123547867,7.7061,2539.0,2538.9,18.63428616]
[1748123548361,5.874,2539.0,2538.9,18.63428616]
[1748123548865,5.874,2539.0,2538.9,18.63426955]
[1748123550766,5.874,2539.0,2538.9,18.63414437]
[1748123551465,6.79445852,2539.0,2538.9,18.63414437]
[1748123552368,8.63795852,2539.0,2538.9,18.63414437]
[1748123554179,9.42542852,2539.0,2538.9,17.75664437]
[1748123554371,9.42542852,2539.0,2538.9,18.54420426]
[1748123554569,0.78757,2538.7,2538.6,0.00591623]
[1748123555071,5.78757,2538.7,2538.6,0.00591623]
[1748123555268,9.05181955,2538.7,2538.6,0.00591623]
[1748123555772,10.82031955,2538.7,2538.6,0.00591623]
[1748123558578,0.78775,2538.1,2538.0,0.78778]
[1748123558769,0.78788,2537.7,2537.6,18.64099714]
[1748123558968,18.51288,2537.7,2537.6,1.43199714]
[1748123559770,19.43333852,2537.7,2537.5,17.209]
[1748123559971,10.16851,2537.6,2537.5,17.209]
[1748123561173,11.08896852,2537.6,2537.5,17.209]
[1748123562278,0.78794,2537.5,2537.4,0.00591623]
[1748123562477,8.45854,2537.5,2537.4,0.00591623]
[1748123562678,13.45854,2537.5,2537.4,0.00591623]
[1748123563986,17.58679852,2537.5,2537.4,0.00591623]
[1748123564483,0.78806,2537.1,2536.8,25.7143]
[1748123564684,7.6387,2537.0,2536.9,0.78812]
[1748123564879,7.6387,2537.0,2536.8,23.01373]
[1748123565085,9.3786,2537.0,2536.9,0.78812]
[1748123565595,7.6387,2537.0,2536.9,0.78812]
[1748123565891,7.6387,2537.0,2536.9,4.42342]
[1748123566193,23.604,2537.0,2536.9,4.42342]
[1748123567797,5.874,2537.0,2536.9,4.42342]
[1748123569099,8.4746,2537.7,2536.9,8.6353]
[1748123569304,17.732,2537.6,2537.5,0.78794]
[1748123570199,17.732,2537.6,2537.5,2.54234]
[1748123572999,5.874,2537.7,2537.6,0.78791]
[1748123573294,5.874,2537.7,2537.6,2.56051]
[1748123575804,5.874,2537.7,2537.6,19.77651]
[1748123576303,7.6853,2537.7,2537.6,19.77651]
[1748123576689,5.874,2537.7,2537.6,19.77651]
[1748123577398,7.6853,2537.7,2537.6,18.00391]
[1748123578203,5.874,2537.7,2537.6,18.00391]
[1748123580708,9.86967,2537.8,2537.7,0.78788]
[1748123580900,9.86967,2537.8,2537.7,2.52568]
[1748123581101,6.66187,2537.8,2537.7,2.52568]
[1748123581406,7.57788864,2537.8,2537.7,2.52568]
[1748123584207,7.57788864,2537.8,2537.7,0.78788]
[1748123584707,9.27458864,2537.8,2537.7,0.78788]
[1748123585912,0.78789,2537.7,2537.6,0.78788]
[1748123586210,2.61289,2537.7,2537.6,0.78788]
[1748123586608,9.40290864,2537.7,2537.6,0.78788]
[1748123588710,9.40290864,2537.7,2537.6,2.49018]
[1748123591011,9.40290864,2537.7,2537.6,4.32108]
[1748123592708,7.57790864,2537.7,2537.6,4.32108]
[1748123592916,6.79001864,2537.7,2537.6,4.32108]
[1748123596212,7.57789864,2537.7,2537.6,1.7023]
[1748123596412,0.78791,2537.6,2537.5,17.137]
[1748123596616,2.62791,2537.6,2537.5,17.137]
[1748123597411,3.54392864,2537.6,2537.5,17.92494]
[1748123597917,3.54392864,2537.6,2537.5,17.137]
[1748123598319,9.41792864,2537.6,2537.5,17.137]
[1748123598719,11.76171967,2537.6,2537.5,17.137]
[1748123599218,11.76171967,2537.6,2537.5,17.92494]
[1748123601721,10.97380967,2537.6,2537.5,17.92494]
[1748123601924,9.13380967,2537.6,2537.5,17.92494]
[1748123602720,6.79001864,2537.6,2537.5,17.92494]
[1748123613726,8.19301864,2537.6,2537.5,17.92494]
[1748123617225,6.79001864,2537.6,2537.5,17.92494]
[1748123627237,8.11161864,2537.6,2537.5,17.92494]
[1748123632538,6.79001864,2537.6,2537.5,17.92494]
[1748123642658,0.91601864,2537.6,2537.5,17.92494]
[1748123643957,0.9915149,2537.6,2537.5,17.92494]
[1748123644960,0.9915149,2537.6,2537.5,17.76894]
[1748123648959,0.91601864,2537.6,2537.5,17.76894]
[1748123649960,0.9915149,2537.6,2537.5,17.76894]
[1748123651155,0.9915149,2537.6,2537.5,19.10324]
[1748123652064,0.91601864,2537.6,2537.5,19.10324]
[1748123653064,0.9915149,2537.6,2537.5,19.10324]
[1748123656270,0.9915149,2537.6,2537.5,22.31104]
[1748123658072,0.91601864,2537.6,2537.5,22.31104]
[1748123660370,2.25801864,2537.8,2537.7,0.78788]
[1748123661775,0.91601864,2537.8,2537.7,2.13448]
[1748123662075,0.91601864,2537.8,2537.7,0.78788]
[1748123662375,2.32691864,2537.8,2537.7,0.78788]
[1748123662775,2.32691864,2537.8,2537.7,2.13448]
[1748123669078,1.4109,2537.8,2537.7,2.13448]
[1748123671674,5.874,2537.9,2537.8,0.78784]
[1748123671879,2.34379103,2538.4,2538.3,0.78769]
[1748123672078,2.34379103,2538.4,2538.3,17.68569]
[1748123672280,3.02839103,2538.5,2538.4,0.78766]
[1748123673381,2.34379103,2538.5,2538.4,2.20596]
[1748123673582,0.69561623,2538.7,2538.6,0.7876]
[1748123674983,2.03151623,2538.7,2538.6,0.7876]
[1748123675980,0.00591623,2538.7,2538.6,2.2059]
[1748123676576,0.00591623,2538.7,2538.6,5.4137]
[1748123685583,0.00591623,2538.7,2538.6,20.8884]
[1748123686083,0.00591623,2538.7,2538.6,22.2284]
[1748123688391,0.00591623,2538.7,2538.6,20.8884]
[1748123689789,0.00591623,2538.7,2538.6,22.2098]
[1748123691284,0.00591623,2538.7,2538.6,20.8884]
[1748123691679,0.00591623,2538.7,2538.6,3.9954]
[1748123691885,0.00591623,2538.7,2538.6,22.208]
[1748123703101,0.00591623,2538.7,2538.6,3.9954]
[1748123703304,0.00591623,2538.7,2538.6,20.8124]
[1748123703497,0.00591623,2538.7,2538.6,22.1485]
[1748123706504,0.00591623,2538.7,2538.6,5.3315]
[1748123706707,0.00591623,2538.7,2538.6,22.1475]
[1748123710998,0.00591623,2538.7,2538.6,23.10352389]
[1748123724017,1.37,2539.1,2539.0,0.78747]
[1748123724217,1.37,2539.1,2539.0,17.60347]
[1748123724814,1.37,2539.1,2539.0,19.65407]
[1748123725115,2.34379103,2539.2,2539.1,0.78744]
[1748123725312,2.34379103,2539.2,2539.1,2.21414]
[1748123726216,3.76899103,2539.2,2539.1,2.21414]
[1748123726410,1.4252,2539.2,2539.1,0.78744]
[1748123732320,1.4252,2539.2,2539.1,2.12064]
[1748123732721,1.4252,2539.2,2539.1,0.78744]
[1748123732922,1.4252,2539.2,2539.1,17.53744]
[1748123733219,1.4252,2539.2,2539.1,0.78744]
[1748123733420,1.4252,2539.2,2539.1,17.53744]
[1748123733822,7.21261,2539.2,2539.1,17.53744]
[1748123734217,10.42041,2539.2,2539.1,17.53744]
[1748123734424,12.76420103,2539.2,2539.1,17.53744]
[1748123735228,10.42041,2539.2,2539.1,17.53744]
[1748123737028,9.633,2539.2,2539.1,17.53744]
[1748123737633,6.4252,2539.2,2539.1,17.53744]
[1748123738025,1.4252,2539.2,2539.1,17.53744]
[1748123738424,4.55762508,2539.2,2539.1,17.53744]
[1748123738627,3.77021508,2539.2,2539.1,17.53744]
[1748123739230,4.55762508,2539.2,2539.1,17.53744]
[1748123743339,3.77021508,2539.2,2539.1,17.53744]
[1748123744540,1.4252,2539.2,2539.1,17.53744]
[1748123745240,2.34501508,2539.3,2539.2,0.78741]
[1748123745434,2.34501508,2539.3,2539.2,2.07611]
[1748123745635,2.34501508,2539.3,2539.2,2.78021]
[1748123752344,3.13239508,2539.3,2539.2,2.78021]
[1748123752543,2.34501508,2539.3,2539.2,2.78021]
[1748123759256,3.13239508,2539.3,2539.2,2.78021]
[1748123759458,3.13239508,2539.3,2539.2,19.53021]
[1748123759853,2.34501508,2539.3,2539.2,0.78741]
[1748123760053,3.68411508,2539.3,2539.2,17.53741]
[1748123760359,4.47149508,2539.3,2539.2,17.53741]
[1748123760554,4.54699134,2539.3,2539.2,17.53741]
[1748123761558,3.13239508,2539.3,2539.2,17.53741]
[1748123762757,2.34501508,2539.3,2539.2,17.53741]
[1748123763552,2.34501508,2539.3,2539.2,0.78741]
[1748123763758,3.13239508,2539.3,2539.2,17.46741]
[1748123763952,2.34501508,2539.3,2539.2,17.46741]
[1748123765361,3.13239508,2539.3,2539.2,17.46741]
[1748123765558,2.34501508,2539.3,2539.2,17.46741]
[1748123770063,2.34501508,2539.4,2539.3,0.78738]
[1748123770366,2.34501508,2539.4,2539.3,2.87938]
[1748123771469,2.34501508,2539.4,2539.3,0.78738]
[1748123771766,2.34501508,2539.4,2539.3,17.46738]
[1748123771964,2.34501508,2539.4,2539.3,18.02256551]
[1748123772170,8.21901508,2539.4,2539.3,18.02156551]
[1748123772658,8.21901508,2539.4,2539.3,18.02154835]
[1748123773164,8.21901508,2539.4,2539.3,1.34254835]
[1748123773366,8.21901508,2539.4,2539.3,18.02154835]
[1748123773961,8.21901508,2539.4,2539.3,18.66984835]
[1748123774564,8.21901508,2539.4,2539.3,18.67015125]
[1748123776465,8.21901508,2539.4,2539.3,18.67012175]
[1748123778067,2.34501508,2539.4,2539.3,18.67012175]
[1748123778466,2.34501508,2539.4,2539.3,18.67008381]
[1748123780768,3.70701508,2539.5,2539.4,0.78735]
[1748123780969,3.70701508,2539.5,2539.4,1.34275381]
[1748123782171,3.70701508,2539.5,2539.4,1.34272056]
[1748123783776,2.34501508,2539.5,2539.4,1.34272056]
[1748123784072,2.34501508,2539.5,2539.4,3.31671166]
[1748123785162,2.34501508,2539.6,2539.5,0.78732]
[1748123785363,2.34501508,2539.6,2539.5,2.65458166]
[1748123785875,2.34501508,2539.6,2539.5,2.65444761]
[1748123786767,5.874,2539.7,2539.6,0.78729]
[1748123786976,29.93403508,2539.8,2539.7,0.78725]
[1748123787176,29.93403508,2539.8,2539.7,1.34247761]
[1748123787373,29.93403508,2539.8,2539.7,2.69607761]
[1748123787776,12.21403508,2539.8,2539.7,19.37485043]
[1748123787977,29.93403508,2539.8,2539.7,19.37485043]
[1748123788879,29.93403508,2539.8,2539.7,18.58760043]
[1748123789680,29.93403508,2539.8,2539.7,18.58745252]
[1748123790280,29.93403508,2539.8,2539.7,19.37470252]
[1748123791778,26.72623508,2539.8,2539.7,19.37470252]
[1748123793480,26.72623508,2539.8,2539.7,19.37456945]
[1748123794281,8.21901508,2539.8,2539.7,19.37456945]
[1748123795382,5.874,2539.8,2539.7,19.37453748]
[1748123795779,20.85121508,2539.9,2539.8,0.78722]
[1748123795979,20.85121508,2539.9,2539.8,3.38890748]
[1748123796386,17.719,2539.9,2539.8,3.38890748]
[1748123796579,9.00619508,2540.0,2539.9,0.78719]
[1748123796778,26.72519508,2540.0,2539.9,2.74407748]
[1748123797285,26.72519508,2540.0,2539.9,1.95679298]
[1748123798281,9.00619508,2540.0,2539.9,2.74398298]
[1748123798784,9.00619508,2540.0,2539.9,3.43678298]
[1748123799288,9.00619508,2540.0,2539.9,3.43676647]
[1748123799587,6.66118,2540.0,2539.9,3.43676647]
[1748123801185,6.66118,2540.0,2539.9,3.4366321]
[1748123802389,5.874,2540.0,2539.9,3.4366321]
[1748123803188,6.66116,2540.0,2539.9,3.4366321]
[1748123803690,5.874,2540.0,2539.9,3.4366321]
[1748123804588,6.66116,2540.0,2539.9,3.4366321]
[1748123804983,6.66116,2540.0,2539.9,3.43645318]
[1748123806389,5.874,2540.0,2539.9,3.43645318]
[1748123806789,5.874,2540.0,2539.9,3.43681631]
[1748123807591,0.78714,2540.1,2540.0,0.78716]
[1748123807789,0.78714,2540.1,2540.0,2.71258631]
[1748123808589,10.39412508,2540.2,2540.1,0.78713]
[1748123808790,9.00612508,2540.2,2540.1,19.31657122]
[1748123810593,6.66111,2540.2,2540.1,19.31657072]
[1748123810790,5.874,2540.2,2540.1,19.31657072]
[1748123812191,5.874,2540.2,2540.1,19.31657826]
[1748123812689,6.6611,2540.2,2540.1,19.31657826]
[1748123813887,5.874,2540.2,2540.1,19.31657826]
[1748123814487,5.874,2540.2,2540.1,19.31681633]
[1748123815187,6.6611,2540.2,2540.1,19.31681633]
[1748123818092,2.34501508,2540.3,2540.2,0.7871]
[1748123818294,2.34501508,2540.3,2540.2,3.30902146]
[1748123818497,2.34501508,2540.3,2540.2,3.97222146]
[1748123819300,3.09387476,2540.6,2540.2,3.97222146]
[1748123819301,6.33977508,2540.7,2540.2,5.15287146]
[1748123819497,0.78698,2540.6,2540.5,0.78699]
[1748123819699,6.33977508,2540.7,2540.5,17.94491146]
[1748123819997,6.33977508,2540.7,2540.6,2.69420146]
[1748123820199,6.33977508,2540.7,2540.6,1.90690048]
[1748123820901,7.67387508,2540.7,2540.6,1.90690048]
[1748123821102,4.46607508,2540.7,2540.6,1.90690048]
[1748123821302,7.67387508,2540.7,2540.6,0.55460048]
[1748123821599,0.78709,2540.3,2539.8,6.13187389]
[1748123821802,0.78709,2540.3,2540.2,0.78709]
[1748123822003,0.78706,2540.4,2540.3,0.78706]
[1748123822205,0.78706,2540.4,2540.3,16.602]
[1748123822702,0.78706,2540.4,2540.3,17.38907]
[1748123823003,0.78706,2540.4,2540.3,16.602]
[1748123823205,0.78706,2540.4,2540.3,17.38907]
[1748123823700,1.3341,2540.5,2540.3,16.602]
[1748123823904,2.12113,2540.5,2540.4,0.78704]
[1748123828208,7.99513,2540.5,2540.4,0.78704]
[1748123829402,7.2081,2540.5,2540.4,2.11334]
[1748123829600,5.874,2540.5,2540.4,2.11334]
[1748123829799,5.874,2540.5,2540.4,2.78314]
[1748123830601,6.66101,2540.5,2540.4,2.78314]
[1748123838711,6.66101,2540.5,2540.4,3.48694]
[1748123839004,0.78704,2540.4,2540.3,16.602]
[1748123839215,2.18764,2540.4,2540.3,16.602]
[1748123839411,2.89904,2540.4,2540.3,16.602]
[1748123840310,2.89904,2540.4,2540.3,17.9986]
[1748123840515,5.874,2540.5,2540.3,17.9986]
[1748123840813,0.86250626,2540.5,2540.4,1.4194]
[1748123842316,0.86250626,2540.5,2540.4,2.20644]
[1748123845313,0.07549626,2540.5,2540.4,2.20644]
[1748123845511,2.42051134,2540.5,2540.4,5.41424]
[1748123845910,2.42579692,2540.5,2540.4,5.41424]
[1748123846723,0.08078184,2540.5,2540.4,5.41424]
[1748123848818,4.5261,2540.7,2540.6,0.78698]
[1748123849114,0.5903,2540.7,2540.6,0.78698]
[1748123849523,0.5903,2540.7,2540.6,2.15318]
[1748123852015,0.5903,2540.7,2540.6,2.82418]
[1748123854524,6.33965508,2541.1,2540.6,2.82418]
[1748123854525,2.34501508,2541.1,2540.6,7.82418]
[1748123854822,13.02746416,2541.9,2540.6,7.82418]
[1748123854823,13.02746416,2541.9,2541.8,0.7866]
[1748123855127,13.02746416,2541.9,2541.8,3.9944]
[1748123855322,13.02746416,2541.9,2541.8,17.2406]
[1748123856635,2.09876,2542.0,2541.8,16.451]
[1748123856927,0.6743,2541.9,2541.8,16.451]
[1748123857130,1.9865,2541.9,2541.7,0.78662]
[1748123857330,2.77307,2541.9,2541.8,16.451]
[1748123857520,1.9865,2541.9,2541.8,16.451]
[1748123858335,1.9865,2541.9,2541.8,17.2376]
[1748123858534,1.9865,2541.9,2541.8,16.451]
[1748123858735,1.9865,2541.9,2541.8,0.7866]
[1748123858936,1.9865,2541.9,2541.8,17.2376]
[1748123860435,1.9865,2541.9,2541.8,0.7866]
[1748123860633,1.9865,2541.9,2541.8,16.449]
[1748123860840,1.9865,2541.9,2541.8,17.2356]
[1748123861037,1.9865,2541.9,2541.8,0.7866]
[1748123861238,1.9865,2541.9,2541.8,17.2356]
[1748123862539,0.59,2542.0,2541.9,0.78657]
[1748123862740,0.59,2542.0,2541.9,17.23457]